fUST/lending_fUST_20241227
["ID","MTS","AMOUNT","RATE_DAILY","PERIOD"]
[346738502,1735258159642,-506.28163403,0.00013999,2]
[346738503,1735258159664,-500.0,0.00013999,2]
[346738504,1735258159685,-500.0,0.00013999,2]
[346738505,1735258159706,-500.0,0.00013999,2]
[346738506,1735258159726,-500.0,0.00013999,2]
[346738507,1735258159746,-500.0,0.00013999,2]
[346738508,1735258159766,-500.0,0.00013999,2]
[346738509,1735258159787,-500.0,0.00013999,2]
[346738510,1735258159807,-500.0,0.00013999,2]
[346738511,1735258159827,-500.0,0.00013999,2]
[346738512,1735258159847,-1000.0,0.00013999,2]
[346738513,1735258159868,-500.0,0.00013999,2]
[346738514,1735258159888,-500.0,0.00013999,2]
[346738515,1735258159909,-500.0,0.00013999,2]
[346738516,1735258159929,-541.56,0.00013999,2]
[346738517,1735258159949,-500.0,0.00013999,2]
[346738518,1735258159970,-500.0,0.00013999,2]
[346738519,1735258159990,-500.0,0.00013999,2]
[346738520,1735258160009,-500.0,0.00013999,2]
[346738521,1735258160029,-500.0,0.00013999,2]
[346738522,1735258160049,-500.0,0.00013999,2]
[346738523,1735258160073,-500.0,0.00013999,2]
[346738524,1735258160094,-500.0,0.00013999,2]
[346738525,1735258160116,-500.0,0.00013999,2]
[346738526,1735258160138,-500.0,0.00013999,2]
[346738527,1735258160158,-500.0,0.00013999,2]
[346738528,1735258160179,-2177.13451195,0.00013999,2]
[346738529,1735258160463,-1833.26548805,0.00013999,2]
[346738530,1735258160484,-500.0,0.00013999,2]
[346738531,1735258160504,-500.0,0.00013999,2]
[346738532,1735258160524,-500.0,0.00013999,2]
[346738533,1735258160545,-500.0,0.00013999,2]
[346738534,1735258160565,-500.0,0.00013999,2]
[346738535,1735258160586,-500.0,0.00013999,2]
[346738536,1735258160606,-501.08019005,0.00013999,2]
[346738537,1735258160626,-500.0,0.00013999,2]
[346738538,1735258160647,-500.0,0.00013999,2]
[346738539,1735258160667,-500.0,0.00013999,2]
[346738540,1735258160691,-500.0,0.00013999,2]
[346738541,1735258160710,-500.0,0.00013999,2]
[346738542,1735258160730,-500.0,0.00013999,2]
[346738543,1735258160750,-500.0,0.00013999,2]
[346738544,1735258160770,-500.0,0.00013999,2]
[346738545,1735258160791,-1228.72,0.00013999,2]
[346738546,1735258160813,-500.0,0.00013999,2]
[346738547,1735258160835,-500.0,0.00013999,2]
[346738548,1735258160856,-500.0,0.00013999,2]
[346738549,1735258160876,-500.0,0.00013999,2]
[346738550,1735258160897,-500.0,0.00013999,2]
[346738551,1735258160918,-500.0,0.00013999,2]
[346738552,1735258160938,-595.91,0.00013999,2]
[346738553,1735258160958,-500.0,0.00013999,2]
[346738554,1735258160978,-500.0,0.00013999,2]
[346738555,1735258160999,-500.0,0.00013999,2]
[346738556,1735258161019,-500.0,0.00013999,2]
[346738557,1735258161041,-645.88,0.00013999,2]
[346738558,1735258161063,-500.0,0.00013999,2]
[346738559,1735258161085,-500.0,0.00013999,2]
[346738560,1735258161210,-500.0,0.00013999,2]
[346738561,1735258161233,-500.0,0.00013999,2]
[346738562,1735258161256,-500.0,0.00013999,2]
[346738563,1735258161277,-500.0,0.00013999,2]
[346738564,1735258161298,-500.0,0.00013999,2]
[346738565,1735258161318,-500.0,0.00013999,2]
[346738566,1735258161340,-500.0,0.00013999,2]
[346738567,1735258161361,-500.0,0.00013999,2]
[346738568,1735258161382,-500.0,0.00014011,2]
[346738569,1735258161403,-500.0,0.00014012,2]
[346738570,1735258161424,-500.0,0.00014012,2]
[346738571,1735258161445,-500.0,0.00014012,2]
[346738572,1735258161467,-500.0,0.00014012,2]
[346738573,1735258161488,-500.0,0.00014012,2]
[346738574,1735258161511,-500.0,0.00014012,2]
[346738575,1735258161536,-500.0,0.00014012,2]
[346738576,1735258161559,-500.0,0.00014012,2]
[346738577,1735258161578,-500.0,0.00014012,2]
[346738578,1735258161600,-500.0,0.00014012,2]
[346738579,1735258161620,-500.0,0.00014012,2]
[346738580,1735258161640,-320.06981447,0.00014012,2]
[346738581,1735258161660,-500.0,0.00014012,2]
[346738582,1735258161680,-500.0,0.00014012,2]
[346738583,1735258161700,-500.0,0.00014012,2]
[346738584,1735258161720,-529.88,0.00014012,2]
[346738585,1735258161741,-1106.37,0.00014012,2]
[346738586,1735258161761,-580.83099848,0.00014012,2]
[346738587,1735258161782,-500.0,0.00014012,2]
[346738588,1735258161803,-1197.49,0.0001427,2]
[346738589,1735258161825,-500.0,0.0001427,2]
[346738590,1735258161847,-500.0,0.0001427,2]
[346738591,1735258161868,-500.0,0.0001427,2]
[346738592,1735258161888,-500.0,0.0001427,2]
[346738593,1735258161910,-500.0,0.0001427,2]
[346738594,1735258161931,-4828.29,0.0001427,2]
[346738595,1735258161952,-500.0,0.0001427,2]
[346738596,1735258161974,-2652.63,0.0001427,2]
[346738597,1735258161993,-500.0,0.00014271,2]
[346738598,1735258162014,-500.0,0.00014271,2]
[346738599,1735258162034,-283.70671855,0.00014271,2]
[346738600,1735258162054,-606.94,0.00014271,2]
[346738601,1735258162079,-500.0,0.00014271,2]
[346738602,1735258162099,-500.0,0.00014271,2]
[346738603,1735258162122,-174.84,0.00014271,2]
[346738604,1735258162144,-500.0,0.00014271,2]
[346738605,1735258162166,-500.0,0.00014271,2]
[346738606,1735258162187,-500.0,0.00014271,2]
[346738607,1735258162209,-511.29685854,0.00014271,2]
[346738608,1735258162230,-500.0,0.00014271,2]
[346738609,1735258162250,-627.18290576,0.00014271,2]
[346738610,1735258162271,-500.0,0.00014271,2]
[346738611,1735258162292,-500.0,0.00014271,2]
[346738612,1735258162313,-500.0,0.00014271,2]
[346738613,1735258162334,-500.0,0.00014271,2]
[346738614,1735258162355,-500.0,0.00014271,2]
[346738615,1735258162376,-500.0,0.00014271,2]
[346738616,1735258162398,-569.96,0.00014271,2]
[346738617,1735258162419,-500.0,0.00014271,2]
[346738618,1735258162440,-500.0,0.00014271,2]
[346738619,1735258162461,-641.65,0.00014271,2]
[346738620,1735258162481,-805.04,0.00014271,2]
[346738621,1735258162501,-500.0,0.00014271,2]
[346738622,1735258162521,-500.0,0.00014271,2]
[346738623,1735258162542,-500.0,0.00014271,2]
[346738624,1735258162564,-823.2,0.00014271,2]
[346738625,1735258162585,-500.0,0.00014271,2]
[346738626,1735258162606,-554.13,0.00014271,2]
[346738627,1735258162626,-500.0,0.00014271,2]
[346738628,1735258162648,-280.45,0.00014271,2]
[346738629,1735258162668,-500.0,0.00014271,2]
[346738630,1735258162689,-218.31,0.00014271,2]
[346738631,1735258162711,-730.94,0.00014271,2]
[346738632,1735258162733,-500.0,0.00014271,2]
[346738633,1735258162752,-500.0,0.00014271,2]
[346738634,1735258162772,-500.0,0.00014271,2]
[346738635,1735258162794,-610.0,0.00014271,2]
[346738636,1735258162814,-500.0,0.00014271,2]
[346738637,1735258162835,-500.0,0.00014271,2]
[346738638,1735258162857,-869.91,0.00014271,2]
[346738639,1735258162878,-229.4,0.00014271,2]
[346738640,1735258162902,-500.0,0.00014271,2]
[346738641,1735258163007,-500.0,0.00014271,2]
[346738642,1735258163029,-500.0,0.00014271,2]
[346738643,1735258163051,-500.0,0.00014271,2]
[346738644,1735258163075,-504.52112147,0.00014271,2]
[346738645,1735258163099,-761.91,0.00014271,2]
[346738646,1735258163120,-500.0,0.00014271,2]
[346738647,1735258163143,-1506.17,0.00014271,2]
[346738648,1735258163163,-3191.01,0.00014271,2]
[346738649,1735258163184,-3191.01,0.00014271,2]
[346738650,1735258163206,-272.22,0.00014271,2]
[346738651,1735258163227,-500.0,0.00014271,2]
[346738652,1735258163247,-583.85,0.00014271,2]
[346738653,1735258163269,-238.5,0.00014271,2]
[346738654,1735258163293,-521.29,0.00014271,2]
[346738655,1735258163315,-630.67,0.00014271,2]
[346738656,1735258163336,-634.49,0.00014271,2]
[346738657,1735258163358,-500.0,0.00014271,2]
[346738658,1735258163379,-234.71,0.00014271,2]
[346738659,1735258163403,-698.15,0.00014271,2]
[346738660,1735258163425,-764.49,0.00014271,2]
[346738661,1735258163448,-233.22,0.00014271,2]
[346738662,1735258163471,-1033.19,0.00014271,2]
[346738663,1735258163492,-500.0,0.00014271,2]
[346738664,1735258163514,-500.0,0.00014271,2]
[346738665,1735258163537,-1125.11,0.00014271,2]
[346738666,1735258163558,-500.0,0.00014271,2]
[346738667,1735258163579,-806.8,0.00014271,2]
[346738668,1735258163599,-379.21,0.00014271,2]
[346738669,1735258163619,-500.0,0.00014271,2]
[346738670,1735258163639,-309.58,0.00014272,2]
[346738671,1735258163660,-500.0,0.00014272,2]
[346738672,1735258163681,-500.0,0.00014272,2]
[346738673,1735258163703,-633.2,0.00014272,2]
[346738674,1735258163724,-500.0,0.00014272,2]
[346738675,1735258163745,-608.95,0.00014272,2]
[346738676,1735258163768,-500.0,0.00014272,2]
[346738677,1735258163789,-500.0,0.00014272,2]
[346738678,1735258163810,-500.0,0.00014272,2]
[346738679,1735258163831,-3191.01,0.00014272,2]
[346738680,1735258163855,-19598.21,0.00014272,2]
[346738681,1735258163877,-737.31,0.00014272,2]
[346738682,1735258163898,-500.0,0.00014273,2]
[346738683,1735258163919,-490.21922074,0.00014273,2]
[346738684,1735258163940,-508.4967355,0.00014273,2]
[346738685,1735258163960,-500.0,0.00014273,2]
[346738686,1735258163982,-617.36,0.00014273,2]
[346738687,1735258164004,-500.0,0.00014273,2]
[346738688,1735258164025,-500.0,0.00014273,2]
[346738689,1735258164045,-500.0,0.00014273,2]
[346738690,1735258164070,-500.0,0.00014273,2]
[346738691,1735258164091,-500.0,0.00014273,2]
[346738692,1735258164114,-500.0,0.00014273,2]
[346738693,1735258164135,-500.0,0.00014273,2]
[346738694,1735258164158,-644.41460179,0.00014273,2]
[346738695,1735258164182,-500.0,0.00014273,2]
[346738696,1735258164204,-607.27,0.00014273,2]
[346738697,1735258164223,-500.0,0.00014273,2]
[346738698,1735258164245,-500.0,0.00014273,2]
[346738699,1735258164270,-500.0,0.00014273,2]
[346738700,1735258164291,-500.0,0.00014273,2]
[346738701,1735258164313,-500.0,0.00014273,2]
[346738702,1735258164333,-500.0,0.00014273,2]
[346738703,1735258164354,-500.0,0.00014273,2]
[346738704,1735258164374,-500.0,0.00014273,2]
[346738705,1735258164395,-500.0,0.00014273,2]
[346738706,1735258164416,-500.0,0.00014273,2]
[346738707,1735258164437,-500.0,0.00014273,2]
[346738708,1735258164458,-500.0,0.00014273,2]
[346738709,1735258164479,-500.0,0.00014273,2]
[346738710,1735258164499,-500.0,0.00014273,2]
[346738711,1735258164520,-500.0,0.00014273,2]
[346738712,1735258164540,-500.0,0.00014273,2]
[346738713,1735258164560,-500.0,0.00014273,2]
[346738714,1735258164582,-745.7,0.00014273,2]
[346738715,1735258164603,-500.0,0.00014273,2]
[346738716,1735258164624,-500.0,0.00014273,2]
[346738717,1735258164645,-500.0,0.00014273,2]
[346738718,1735258164732,-500.0,0.00014273,2]
[346738719,1735258164766,-541.56,0.00014273,2]
[346738720,1735258164788,-500.0,0.00014273,2]
[346738721,1735258164809,-500.0,0.00014273,2]
[346738722,1735258164830,-500.0,0.00014273,2]
[346738723,1735258164851,-4010.4,0.00014273,2]
[346738724,1735258164871,-500.0,0.00014273,2]
[346738725,1735258164892,-500.0,0.00014273,2]
[346738726,1735258164913,-500.0,0.00014273,2]
[346738727,1735258164935,-1228.72,0.00014273,2]
[346738728,1735258164955,-500.0,0.00014273,2]
[346738729,1735258164977,-211.61419623,0.00014273,2]
[346738730,1735258164999,-645.88,0.00014273,2]
[346738731,1735258165021,-500.0,0.00014273,2]
[346738732,1735258165042,-500.0,0.00014273,2]
[346738733,1735258165064,-500.0,0.00014285,2]
[346738734,1735258165086,-1106.37,0.00014286,2]
[346738735,1735258165107,-500.0,0.00014286,2]
[346738736,1735258165129,-2119.06667986,0.00014515,2]
[346738737,1735258165152,-1197.49,0.00014544,2]
[346738738,1735258165173,-500.0,0.00014544,2]
[346738739,1735258165196,-500.0,0.00014544,2]
[346738740,1735258165218,-500.0,0.00014544,2]
[346738741,1735258165240,-448.18,0.00014544,2]
[346738742,1735258165262,-500.0,0.00014544,2]
[346738743,1735258165286,-4828.29,0.00014544,2]
[346738744,1735258165307,-515.72,0.00014544,2]
[346738745,1735258165329,-2652.63,0.00014544,2]
[346738746,1735258165351,-500.0,0.00014545,2]
[346738747,1735258165374,-500.0,0.00014545,2]
[346738748,1735258165395,-501.54249789,0.00014545,2]
[346738749,1735258165418,-500.0,0.00014545,2]
[346738750,1735258165440,-500.0,0.00014545,2]
[346738751,1735258165462,-500.0,0.00014545,2]
[346738752,1735258165483,-500.0,0.00014545,2]
[346738753,1735258165504,-641.65,0.00014545,2]
[346738754,1735258165526,-805.04,0.00014545,2]
[346738755,1735258165547,-500.0,0.00014545,2]
[346738756,1735258165569,-500.0,0.00014545,2]
[346738757,1735258165590,-823.2,0.00014545,2]
[346738758,1735258165611,-500.0,0.00014545,2]
[346738759,1735258165632,-471.22592098,0.00014545,2]
[346738760,1735258165653,-500.0,0.00014545,2]
[346738761,1735258165675,-730.94,0.00014545,2]
[346738762,1735258165698,-610.0,0.00014545,2]
[346738763,1735258165720,-500.0,0.00014545,2]
[346738764,1735258165740,-406.67,0.00014545,2]
[346738765,1735258165762,-869.91,0.00014545,2]
[346738766,1735258165784,-500.0,0.00014545,2]
[346738767,1735258165806,-500.0,0.00014545,2]
[346738768,1735258165827,-500.0,0.00014545,2]
[346738769,1735258165849,-500.0,0.00014545,2]
[346738770,1735258165871,-761.91,0.00014545,2]
[346738771,1735258165896,-500.0,0.00014545,2]
[346738772,1735258165918,-1506.17,0.00014545,2]
[346738773,1735258165939,-3191.01,0.00014545,2]
[346738774,1735258165960,-3191.01,0.00014545,2]
[346738775,1735258165981,-500.0,0.00014545,2]
[346738776,1735258166002,-583.85,0.00014545,2]
[346738777,1735258166024,-521.29,0.00014545,2]
[346738778,1735258166046,-630.67,0.00014545,2]
[346738779,1735258166072,-634.49,0.00014545,2]
[346738780,1735258166093,-465.26,0.00014545,2]
[346738781,1735258166116,-698.15,0.00014545,2]
[346738782,1735258166137,-764.49,0.00014545,2]
[346738783,1735258166160,-1033.19,0.00014545,2]
[346738784,1735258166181,-417.18,0.00014545,2]
[346738785,1735258166200,-500.0,0.00014545,2]
[346738786,1735258166221,-1125.11,0.00014545,2]
[346738787,1735258166241,-500.0,0.00014545,2]
[346738788,1735258166263,-806.8,0.00014545,2]
[346738789,1735258166284,-500.0,0.00014546,2]
[346738790,1735258166305,-500.0,0.00014546,2]
[346738791,1735258166327,-633.2,0.00014546,2]
[346738792,1735258166348,-500.0,0.00014546,2]
[346738793,1735258166446,-608.95,0.00014546,2]
[346738794,1735258166469,-500.0,0.00014546,2]
[346738795,1735258166494,-500.0,0.00014546,2]
[346738796,1735258166516,-19598.21,0.00014546,2]
[346738797,1735258166538,-737.31,0.00014546,2]
[346738798,1735258166559,-500.0,0.00014547,2]
[346738799,1735258166579,-302.45,0.00014547,2]
[346738800,1735258166600,-500.0,0.00014547,2]
[346738801,1735258166620,-500.0,0.00014547,2]
[346738802,1735258166640,-500.0,0.00014547,2]
[346738803,1735258166662,-500.0,0.00014547,2]
[346738804,1735258166682,-500.0,0.00014547,2]
[346738805,1735258166702,-500.0,0.00014547,2]
[346738806,1735258166724,-745.7,0.00014547,2]
[346738807,1735258166745,-500.0,0.00014547,2]
[346738808,1735258166766,-601.94,0.00014547,2]
[346738809,1735258166786,-541.56,0.00014547,2]
[346738810,1735258166807,-4010.4,0.00014547,2]
[346738811,1735258166827,-500.0,0.00014547,2]
[346738812,1735258166847,-500.0,0.00014547,2]
[346738813,1735258166868,-1228.72,0.00014547,2]
[346738814,1735258166888,-500.0,0.00014547,2]
[346738815,1735258166910,-645.88,0.00014547,2]
[346738816,1735258166930,-500.0,0.00014547,2]
[346738817,1735258166951,-500.0,0.00014547,2]
[346738818,1735258166971,-500.0,0.00014558,2]
[346738819,1735258166993,-500.0,0.00014558,2]
[346738820,1735258167014,-500.0,0.00014558,2]
[346738821,1735258167035,-3191.01,0.00014558,2]
[346738822,1735258167058,-3191.01,0.00014558,2]
[346738823,1735258167079,-500.0,0.00014559,2]
[346738824,1735258167100,-500.0,0.00014559,2]
[346738825,1735258167121,-500.0,0.00014559,2]
[346738826,1735258167142,-545.8,0.00014559,2]
[346738827,1735258167164,-500.0,0.00014559,2]
[346738828,1735258167185,-503.17675525,0.00014559,2]
[346738829,1735258167207,-500.0,0.00014559,2]
[346738830,1735258167230,-500.0,0.00014559,2]
[346738831,1735258167251,-500.0,0.00014559,2]
[346738832,1735258167272,-534.32876447,0.00014559,2]
[346738833,1735258167294,-500.0,0.00014559,2]
[346738834,1735258167315,-500.0,0.00014559,2]
[346738835,1735258167336,-522.19,0.00014559,2]
[346738836,1735258167359,-500.0,0.00014559,2]
[346738837,1735258167380,-500.0,0.00014559,2]
[346738838,1735258167401,-500.0,0.00014559,2]
[346738839,1735258167423,-500.0,0.00014559,2]
[346738840,1735258167447,-500.0,0.00014559,2]
[346738841,1735258167469,-500.0,0.00014559,2]
[346738842,1735258167491,-726.6,0.00014559,2]
[346738843,1735258167512,-595.86025806,0.00014559,2]
[346738844,1735258167533,-500.0,0.00014559,2]
[346738845,1735258167554,-500.0,0.00014559,2]
[346738846,1735258167576,-500.0,0.00014559,2]
[346738847,1735258167598,-500.0,0.00014559,2]
[346738848,1735258167618,-500.0,0.00014559,2]
[346738849,1735258167639,-500.0,0.00014559,2]
[346738850,1735258167660,-508.84720275,0.00014559,2]
[346738851,1735258167681,-500.0,0.00014559,2]
[346738852,1735258167703,-500.0,0.00014559,2]
[346738853,1735258167723,-500.0,0.00014559,2]
[346738854,1735258167744,-612.78,0.00014559,2]
[346738855,1735258167764,-500.0,0.00014559,2]
[346738856,1735258167785,-500.0,0.00014559,2]
[346738857,1735258167805,-500.0,0.00014559,2]
[346738858,1735258167826,-500.0,0.00014559,2]
[346738859,1735258167847,-500.0,0.00014559,2]
[346738860,1735258167868,-500.0,0.00014559,2]
[346738861,1735258167889,-500.0,0.00014559,2]
[346738862,1735258167910,-500.0,0.00014559,2]
[346738863,1735258167931,-625.95,0.00014559,2]
[346738864,1735258168019,-500.0,0.00014559,2]
[346738865,1735258168042,-500.0,0.00014559,2]
[346738866,1735258168067,-500.0,0.00014559,2]
[346738867,1735258168087,-500.0,0.00014559,2]
[346738868,1735258168109,-500.0,0.00014559,2]
[346738869,1735258168129,-500.0,0.00014559,2]
[346738870,1735258168154,-552.66133146,0.00014559,2]
[346738871,1735258168176,-500.0,0.00014559,2]
[346738872,1735258168196,-500.0,0.00014559,2]
[346738873,1735258168217,-500.0,0.00014559,2]
[346738874,1735258168242,-500.0,0.00014559,2]
[346738875,1735258168263,-500.0,0.00014559,2]
[346738876,1735258168284,-529.08,0.00014559,2]
[346738877,1735258168305,-500.0,0.00014559,2]
[346738878,1735258168326,-392.62752872,0.00014559,2]
[346738879,1735258168347,-500.0,0.00014559,2]
[346738880,1735258168369,-500.0,0.00014559,2]
[346738881,1735258168391,-500.0,0.00014559,2]
[346738882,1735258168415,-1124.18,0.00014559,2]
[346738883,1735258168438,-500.0,0.00014559,2]
[346738884,1735258168459,-500.0,0.00014559,2]
[346738885,1735258168482,-500.0,0.00014559,2]
[346738886,1735258168505,-500.0,0.00014559,2]
[346738887,1735258168527,-500.0,0.00014559,2]
[346738888,1735258168550,-500.0,0.00014559,2]
[346738889,1735258168572,-572.05,0.00014559,2]
[346738890,1735258168593,-511.95517976,0.00014559,2]
[346738891,1735258168613,-500.0,0.00014559,2]
[346738892,1735258168635,-751.23,0.00014559,2]
[346738893,1735258168657,-500.0,0.00014559,2]
[346738894,1735258168678,-1067.53,0.00014559,2]
[346738895,1735258168700,-660.7,0.00014559,2]
[346738896,1735258168722,-546.97,0.00014559,2]
[346738897,1735258168743,-500.0,0.00014559,2]
[346738898,1735258168765,-500.0,0.00014559,2]
[346738899,1735258168787,-500.0,0.00014559,2]
[346738900,1735258168808,-500.0,0.00014559,2]
[346738901,1735258168831,-575.72,0.00014559,2]
[346738902,1735258168852,-500.0,0.00014559,2]
[346738903,1735258168873,-500.0,0.00014559,2]
[346738904,1735258168895,-500.50275461,0.00014559,2]
[346738905,1735258168917,-562.36,0.00014559,2]
[346738906,1735258168939,-500.0,0.00014559,2]
[346738907,1735258168960,-500.0,0.00014559,2]
[346738908,1735258168981,-500.0,0.00014559,2]
[346738909,1735258169000,-500.0,0.00014559,2]
[346738910,1735258169022,-500.0,0.00014559,2]
[346738911,1735258169045,-500.0,0.00014559,2]
[346738912,1735258169067,-500.0,0.00014559,2]
[346738913,1735258169090,-878.96,0.00014559,2]
[346738914,1735258169111,-500.0,0.00014559,2]
[346738915,1735258169132,-500.0,0.00014559,2]
[346738916,1735258169152,-506.94618573,0.00014559,2]
[346738917,1735258169172,-500.0,0.00014559,2]
[346738918,1735258169193,-500.0,0.00014559,2]
[346738919,1735258169214,-500.0,0.00014559,2]
[346738920,1735258169235,-500.0,0.00014559,2]
[346738921,1735258169256,-500.0,0.00014559,2]
[346738922,1735258169276,-500.0,0.00014559,2]
[346738923,1735258169297,-1106.37,0.0001456,2]
[346738924,1735258169319,-500.0,0.0001456,2]
[346738925,1735258169340,-1197.49,0.00014818,2]
[346738926,1735258169361,-500.0,0.00014818,2]
[346738927,1735258169383,-500.0,0.00014818,2]
[346738928,1735258169405,-500.0,0.00014818,2]
[346738929,1735258169427,-500.0,0.00014818,2]
[346738930,1735258169450,-4828.29,0.00014818,2]
[346738931,1735258169472,-2652.63,0.00014818,2]
[346738932,1735258169493,-500.0,0.00014819,2]
[346738933,1735258169597,-500.0,0.00014819,2]
[346738934,1735258169620,-500.0,0.00014819,2]
[346738935,1735258169643,-500.0,0.00014819,2]
[346738936,1735258169665,-500.0,0.00014819,2]
[346738937,1735258169687,-641.65,0.00014819,2]
[346738938,1735258169709,-805.04,0.00014819,2]
[346738939,1735258169732,-500.0,0.00014819,2]
[346738940,1735258169755,-823.2,0.00014819,2]
[346738941,1735258169776,-500.0,0.00014819,2]
[346738942,1735258169797,-500.0,0.00014819,2]
[346738943,1735258169819,-730.94,0.00014819,2]
[346738944,1735258169841,-610.0,0.00014819,2]
[346738945,1735258169865,-500.0,0.00014819,2]
[346738946,1735258169887,-869.91,0.00014819,2]
[346738947,1735258169910,-500.0,0.00014819,2]
[346738948,1735258169932,-500.0,0.00014819,2]
[346738949,1735258169956,-500.0,0.00014819,2]
[346738950,1735258169978,-761.91,0.00014819,2]
[346738951,1735258170000,-500.0,0.00014819,2]
[346738952,1735258170023,-1506.17,0.00014819,2]
[346738953,1735258170044,-3191.01,0.00014819,2]
[346738954,1735258170068,-565.68,0.00014819,2]
[346738955,1735258170090,-583.85,0.00014819,2]
[346738956,1735258170112,-521.29,0.00014819,2]
[346738957,1735258170134,-630.67,0.00014819,2]
[346738958,1735258170155,-634.49,0.00014819,2]
[346738959,1735258170178,-698.15,0.00014819,2]
[346738960,1735258170199,-764.49,0.00014819,2]
[346738961,1735258170222,-1033.19,0.00014819,2]
[346738962,1735258170244,-500.0,0.00014819,2]
[346738963,1735258170266,-1125.11,0.00014819,2]
[346738964,1735258170288,-500.0,0.00014819,2]
[346738965,1735258170310,-806.8,0.00014819,2]
[346738966,1735258170332,-500.0,0.0001482,2]
[346738967,1735258170354,-500.0,0.0001482,2]
[346738968,1735258170376,-633.2,0.0001482,2]
[346738969,1735258170397,-500.0,0.0001482,2]
[346738970,1735258170419,-608.95,0.0001482,2]
[346738971,1735258170441,-500.0,0.0001482,2]
[346738972,1735258170465,-500.0,0.0001482,2]
[346738973,1735258170486,-500.0,0.0001482,2]
[346738974,1735258170508,-3191.01,0.0001482,2]
[346738975,1735258170530,-19598.21,0.0001482,2]
[346738976,1735258170554,-737.31,0.0001482,2]
[346738977,1735258170575,-500.0,0.00014821,2]
[346738978,1735258170596,-500.0,0.00014821,2]
[346738979,1735258170618,-500.0,0.00014821,2]
[346738980,1735258170642,-500.0,0.00014821,2]
[346738981,1735258170664,-448.54,0.00014821,2]
[346738982,1735258170686,-500.0,0.00014821,2]
[346738983,1735258170707,-500.0,0.00014821,2]
[346738984,1735258170729,-745.7,0.00014821,2]
[346738985,1735258170750,-500.0,0.00014821,2]
[346738986,1735258170772,-541.56,0.00014821,2]
[346738987,1735258170795,-4010.4,0.00014821,2]
[346738988,1735258170816,-500.0,0.00014821,2]
[346738989,1735258170839,-1228.72,0.00014821,2]
[346738990,1735258170862,-500.0,0.00014821,2]
[346738991,1735258170884,-645.88,0.00014821,2]
[346738992,1735258170906,-500.0,0.00014821,2]
[346738993,1735258170926,-624.89,0.00014821,2]
[346738994,1735258170947,-177.75215792,0.00014829,2]
[346738995,1735258170968,-500.0,0.0001483,2]
[346738996,1735258170989,-500.0,0.0001483,2]
[346738997,1735258171011,-3191.01,0.0001483,2]
[346738998,1735258171036,-500.0,0.00014831,2]
[346738999,1735258171129,-500.0,0.00014831,2]
[346739000,1735258171150,-3191.01,0.00014831,2]
[346739001,1735258171174,-500.0,0.00014832,2]